Cogmind - Beta 11 X8 @@@ ROGUE MODE // 2021.10.27 @ 20:42:09 Player: Terminus Result: Self-destructed Performance ------------- Evolutions (5) 2500 Regions Visited (21) 4200 Robots Destroyed (280) 1400 Value Destroyed (9232) 9232 Prototype IDs (30) 600 Alien Tech Used (1) 200 Bonus (3182) 3182 TOTAL SCORE: 21314 Bonus ------- High Alert Combat Kills 301 Follower Combat Kills 1222 Met Data Miner 300 Met Imprinter 300 Was Imprinted 300 Met Warlord at Base 500 MAIN.C Attacked Warlord 500 Warlord Defense Kill 576 Friendly Fire -817 Cogmind --------- Core Integrity 543/1000 Matter 300/300 Energy 550/550 System Corruption 0% Temperature Cool (0) Movement Core (2400) Ox47 Location -5/Warlord Parts ------- > --- POWER (3) -------- Reinforced Fission Core Particle Reactor > --- PROPULSION (4) --- (None) > --- UTILITY (8) ------ Advanced Cooling System Advanced Cooling System Huge Storage Unit Machine Analyzer Advanced Signal Interpreter Advanced Targeting Computer > --- WEAPON (3) ------- Cooled Plasma Rifle Cooled Plasma Rifle Heavy Plasma Cannon > --- INVENTORY (25) --- Micro Fission Core Vortex Chain Reactor Heavy Treads Advanced Cooling System Advanced Cooling System Advanced Energy Well (500) Long-range Terrain Scanner Experimental Targeting Computer Improved Target Analyzer Experimental Armor Integrity Analyzer Advanced Particle Charger Weapon Cycler Improved Heavy Armor Plating Layered Medium Armor Plating Experimental Thermal Shield Improved Plasma Cutter CR-A16's Pointy Stick Peak State ------------ > --- POWER ------------ Light Angular Momentum Engine Reinforced Fission Core Particle Reactor > --- PROPULSION ------- Heavy Treads Heavy Treads > --- UTILITY ---------- Advanced Cooling System Advanced Cooling System Huge Storage Unit Machine Analyzer Makeshift Sensor Array Advanced Signal Interpreter Advanced Targeting Computer Improved Powered Armor > --- WEAPON ----------- Plasma Rifle Beamcaster Cooled Plasma Rifle > --- INVENTORY -------- Micro Fission Core Vortex Chain Reactor Heavy Treads Advanced Cooling System Advanced Cooling System Advanced Energy Well Long-range Terrain Scanner Experimental Targeting Computer Improved Target Analyzer Experimental Armor Integrity Analyzer Advanced Particle Charger Weapon Cycler Improved Medium Armor Plating Improved Medium Armor Plating Improved Heavy Armor Plating Experimental Thermal Shield Cooled Plasma Rifle Heavy Plasma Cannon Improved Plasma Cutter CR-A16's Pointy Stick [Rating: 111] Favorites ----------- Power Improved Deuterium Engine Engine Improved Deuterium Engine Power Core Micro Fission Core Reactor Particle Reactor Propulsion Advanced Treads Treads Advanced Treads Utility Huge Storage Unit Device Improved Cooling System Storage Huge Storage Unit Processor Improved Signal Interpreter Hackware Hacking Suite Protection Hardened Medium Armor Plating Weapon Ion Cannon Energy Gun Heavy Laser Energy Cannon Ion Cannon Ballistic Gun Assault Rifle Ballistic Cannon Light Cannon Launcher Heavy Missile Launcher Special Weapon Improved Plasma Cutter Slashing Weapon Katana Piercing Weapon CR-A16's Pointy Stick Build | -11 -10 -10 -9 -9 -9 -8 -8 -7 -7 -7 -7 -6 -6 -6 -6 -6 -5 -5 -5 -5 -5 ------- Run | Scr Mat Min Mat Min Exi Min Mat Fac Low Low Dat Pro Fac Low Low Zio Pro Fac Upp Upp War Slots Evolved 10 | . . . 2 . . . 2 2 . . . . 2 . . . . 2 . . . Power 1 | . . . . . . . . . . . . . 1 . . . . . . . . Propulsion 2 | . . . . . . . 1 . . . . . 1 . . . . . . . . Utility 6 | . . . 1 . . . 1 2 . . . . . . . . . 2 . . . Weapon 1 | . . . 1 . . . . . . . . . . . . . . . . . . Parts Attached 307 | 6 11 3 27 8 1 . 42 19 3 9 . 9 24 3 4 8 8 76 14 13 19 Power 24 | 1 1 . 4 . . . 2 . . . . . 4 . 1 . 1 7 1 1 1 Engine 18 | 1 1 . 4 . . . 2 . . . . . 4 . 1 . 1 2 1 1 . Core 2 | . . . . . . . . . . . . . . . . . . 1 . . 1 Reactor 4 | . . . . . . . . . . . . . . . . . . 4 . . . Propulsion 39 | 2 1 2 10 2 . . 12 . . 1 . 1 2 . . . 1 4 . . 1 Treads 39 | 2 1 2 10 2 . . 12 . . 1 . 1 2 . . . 1 4 . . 1 Leg . | . . . . . . . . . . . . . . . . . . . . . . Wheel . | . . . . . . . . . . . . . . . . . . . . . . Hover . | . . . . . . . . . . . . . . . . . . . . . . Flight . | . . . . . . . . . . . . . . . . . . . . . . Utility 145 | 1 5 . 7 2 1 . 11 15 . 2 . 3 11 2 3 3 4 49 8 4 14 Device 91 | . 3 . 4 2 . . 4 6 . 1 . 1 7 2 2 1 3 34 6 4 11 Storage 9 | 1 2 . 1 . 1 . 1 1 . . . . . . . 1 . 1 . . . Processor 5 | . . . . . . . . 1 . . . . . . . . . 3 . . 1 Hackware 6 | . . . . . . . 2 1 . . . . . . . . . 3 . . . Protection 34 | . . . 2 . . . 4 6 . 1 . 2 4 . 1 1 1 8 2 . 2 Artifact . | . . . . . . . . . . . . . . . . . . . . . . Weapon 99 | 2 4 1 6 4 . . 17 4 3 6 . 5 7 1 . 5 2 16 5 8 3 Energy Gun 36 | . 2 1 2 . . . 3 . . . . . 6 . . 4 1 10 2 3 2 Energy Cannon 40 | . . . 4 2 . . 12 3 2 3 . 2 1 1 . 1 . 4 1 3 1 Ballistic Gun 3 | 2 1 . . . . . . . . . . . . . . . . . . . . Ballistic Cannon 1 | . 1 . . . . . . . . . . . . . . . . . . . . Launcher 14 | . . . . 2 . . 2 . 1 3 . 2 . . . . . 1 2 1 . Special Weapon 3 | . . . . . . . . . . . . 1 . . . . . 1 . 1 . Impact Weapon . | . . . . . . . . . . . . . . . . . . . . . . Slashing Weapon 1 | . . . . . . . . 1 . . . . . . . . . . . . . Piercing Weapon 1 | . . . . . . . . . . . . . . . . . 1 . . . . Special Melee Weapon . | . . . . . . . . . . . . . . . . . . . . . . Unidentified Prototypes 14 | . . . 3 . . . 3 . . . . . 3 1 . 1 . 2 . . 1 Parts Lost 33 | . 1 . . 1 . . 1 . 1 1 . 2 3 . . . . 7 . 6 10 Power 4 | . . . . . . . . . . . . . . . . . . 2 . 1 1 Propulsion 7 | . . . . . . . . . . 1 . 1 1 . . . . 1 . 1 2 Utility 9 | . . . . 1 . . . . . . . 1 . . . . . 2 . 1 4 Weapon 13 | . 1 . . . . . 1 . 1 . . . 2 . . . . 2 . 3 3 Highest Loss Streak 4 | . 1 . . 1 . . 1 . 1 1 . 2 2 . . . . 3 . 3 4 Average Slot Usage (%) 97 | . 98 100 99 100 100 100 99 99 98 100 100 99 99 99 100 100 100 96 91 88 86 Engine 10 | . 14 14 11 11 11 11 9 7 7 7 7 7 13 12 18 18 18 6 3 4 4 Reactor 2 | . . . . . . . . . . . . . . . . . . 5 12 11 9 Treads 22 | . 27 28 22 22 22 22 26 23 23 23 23 22 26 25 25 25 25 19 16 12 10 Device 18 | . 12 14 18 22 22 22 17 22 23 22 23 18 18 19 17 18 17 15 14 20 19 Storage 7 | . 14 14 11 11 11 11 8 7 7 7 7 7 6 6 6 6 6 5 5 5 5 Processor 6 | . . . . . . . . 7 7 7 7 7 6 6 6 6 6 16 16 11 12 Hackware 1 | . . . . . . . . 6 7 7 7 7 6 6 6 . . . . . . Protection 3 | . . . 3 . . . 8 . . . . 3 1 . . 5 6 4 4 5 5 Energy Gun 8 | . 12 14 5 . . . . . . . . . 4 13 12 17 17 12 14 12 15 Energy Cannon 11 | . . . 23 32 33 33 26 21 20 22 23 22 15 5 6 . . 2 . 1 . Ballistic Gun 1 | . 15 14 3 . . . . . . . . . . . . . . . . . . Naked Turns . | . . . . . . . . . . . . . . . . . . . . . . Heaviest Build 168 | 13 50 51 62 63 62 62 74 110 110 112 110 112 125 121 143 144 147 168 168 165 163 Greatest Support 140 | 40 40 40 40 40 40 40 62 62 62 62 62 62 92 92 92 92 100 126 126 126 140 Greatest Overweight (x) 3 | 2 1 1 1 1 1 1 3 1 1 1 1 1 1 1 1 1 1 1 1 1 2 Average Overweight (x) . | . . 1 1 1 1 1 . 1 1 1 1 1 1 1 1 1 1 1 1 1 . Largest Inventory Capacity 25 | 8 20 20 20 20 20 20 20 25 25 25 25 25 25 25 25 25 25 25 25 25 25 Average Capacity 22 | 7 15 20 20 20 20 20 19 22 25 25 25 25 25 25 25 25 25 25 25 25 25 Most Carried 25 | 2 16 20 20 20 20 20 20 25 25 24 24 25 25 25 25 25 25 25 25 25 25 Average Carried 21 | 1 9 18 19 19 20 20 19 21 24 23 24 23 24 24 24 24 24 24 24 22 22 Final Capacity 25 | 8 20 20 20 20 20 20 20 25 25 25 25 25 25 25 25 25 25 25 25 25 25 Final Carried 25 | 2 16 19 20 20 20 20 20 25 24 24 24 23 25 25 25 25 25 25 25 22 20 Class Distribution -------------------- 34% | Scavenger-Skirmisher 11% | Scavenger-Mutant 10% | Tank 10% | Gunner 9% | Generator-Skirmisher 8% | Mutant 6% | Scavenger-Tank 3% | Scavenger-Gunner 3% | Generator-Mutant Dominant Class ---------------- Mutant | -10/Materials Scavenger-Mutant | -10/Mines Scavenger-Gunner | -9/Materials Gunner | -9/Mines Gunner | -9/Exiles Gunner | -8/Mines Tank | -8/Materials Scavenger-Skirmisher | -7/Factory Scavenger-Skirmisher | -7/Lower Caves Scavenger-Skirmisher | -7/Lower Caves Scavenger-Skirmisher | -7/Data Miner Scavenger-Tank | -6/Proximity Caves Scavenger-Skirmisher | -6/Factory Scavenger-Mutant | -6/Lower Caves Scavenger-Skirmisher | -6/Lower Caves Scavenger-Skirmisher | -6/Zion Scavenger-Skirmisher | -5/Proximity Caves Scavenger-Skirmisher | -5/Factory Generator-Skirmisher | -5/Upper Caves Generator-Mutant | -5/Upper Caves Generator-Skirmisher | -5/Warlord Resources | -11 -10 -10 -9 -9 -9 -8 -8 -7 -7 -7 -7 -6 -6 -6 -6 -6 -5 -5 -5 -5 -5 ----------- Run | Scr Mat Min Mat Min Exi Min Mat Fac Low Low Dat Pro Fac Low Low Zio Pro Fac Upp Upp War Matter Collected 4186 | 229 351 61 374 130 . 10 437 181 60 189 . 159 225 20 46 55 115 890 274 220 160 Remotely . | . . . . . . . . . . . . . . . . . . . . . . Salvage Created 11253 | . 716 78 1799 430 . 96 2010 624 164 432 . 175 902 . 1 . 176 2132 289 979 250 Parts 514 | . 49 4 99 28 . 16 114 41 7 24 . 14 22 . 1 . 6 51 3 25 10 Haulers Intercepted 21 | . 2 . 5 . . . 6 1 . . . . 2 . . . . 4 1 . . Recyclers Shooed 11 | . . 1 1 . . . 4 . . . . . 1 . . . . 4 . . . Parts Field Recycled . | . . . . . . . . . . . . . . . . . . . . . . Retrieved Matter . | . . . . . . . . . . . . . . . . . . . . . . Parts Self-Destructed 203 | . . . . . . . . . 13 23 . 8 . 6 1 . 17 . 2 20 113 Prevented 29 | . . . . . . . . . 6 . . . . . . . 1 . . . 22 Kills | -11 -10 -10 -9 -9 -9 -8 -8 -7 -7 -7 -7 -6 -6 -6 -6 -6 -5 -5 -5 -5 -5 ------- Run | Scr Mat Min Mat Min Exi Min Mat Fac Low Low Dat Pro Fac Low Low Zio Pro Fac Upp Upp War Combat Hostiles Destroyed 211 | . 16 1 26 14 . 8 32 11 3 16 . 9 8 . 1 . 5 24 9 21 7 Guns 69 | . 15 1 12 . . . . . . . . . 2 . 1 . 5 15 3 8 7 Cannons 81 | . 1 . 13 9 . 5 26 11 . 2 . 1 4 . . . . 4 . 5 . AOE 47 | . . . . 5 . 3 5 . 2 13 . 8 . . . . . . 6 5 . Classes Destroyed 18 | . 7 1 3 1 . . 2 1 . 1 . . . . . . . . . 1 1 Worker 8 | . 1 2 . . . . 2 3 . . . . . . . . . . . . . Builder 3 | . 2 . . . . . 1 . . . . . . . . . . . . . . Hauler 21 | . 2 . 5 . . . 6 1 . . . . 2 . . . . 4 1 . . Recycler 13 | . 1 1 5 . . . 4 . . . . . 1 . . . . 1 . . . Mechanic 1 | . . . . . . . . . . . . . . . . . . . . 1 . Operator 3 | . . . 3 . . . . . . . . . . . . . . . . . . Watcher 17 | . 1 . 5 . . . 5 1 . . . . 1 . . . . 4 . . . Swarmer 60 | . 6 . 6 6 . 8 12 4 . 4 . 7 . . 1 . 3 . 1 1 1 Saboteur 3 | . . . . . . . . . . . . . . . . . . . . . 3 Grunt 81 | . 10 . 15 5 . . 7 2 3 7 . . 7 . . . . 8 6 11 . Brawler 10 | . . . 2 2 . . . . . 2 . . . . . . . . . 3 1 Duelist 7 | . . . . 1 . . . . . 1 . . . . . . . . 1 4 . Protector 1 | . . . . . . . . . . 1 . . . . . . . . . . . Sentry 24 | . . . 5 . . . 9 2 . 1 . 1 1 . . . . 2 1 2 . Demolisher 3 | . . 1 . . . . . . . . . . . . . . . . . . 2 Hunter 5 | . . . . . . . 3 1 . . . . . . . . . 1 . . . Programmer 18 | . . . . . . . . 2 . . . 1 . . . . 2 13 . . . Heavy 1 | . . . . . . . 1 . . . . . . . . . . . . . . Enhanced Grunt 1 | . . . . . . . . . . . . . 1 . . . . . . . . Decomposer 1 | . . . . . . . . . . . . . . . . . . . . 1 . Best Kill Streak 13 | . 3 2 7 3 . 4 8 4 1 12 . 4 3 . 1 . 4 3 5 13 3 Combat Bots Only 13 | . 3 1 5 3 . 4 7 4 1 12 . 4 3 . 1 . 4 3 5 13 3 Max Kills in Single Turn 3 | . 1 1 1 2 . 3 3 2 1 3 . 3 1 . 1 . 1 1 3 3 2 Gunslinging 1 | . . . . . . . . . . . . . . . . . . . . . 1 Exploded 3 | . . . . 2 . 3 3 . 1 3 . 3 . . . . . . 3 3 . Melee . | . . . . . . . . . . . . . . . . . . . . . . Uniques/NPCs Destroyed . | . . . . . . . . . . . . . . . . . . . . . . Combat | -11 -10 -10 -9 -9 -9 -8 -8 -7 -7 -7 -7 -6 -6 -6 -6 -6 -5 -5 -5 -5 -5 -------- Run | Scr Mat Min Mat Min Exi Min Mat Fac Low Low Dat Pro Fac Low Low Zio Pro Fac Upp Upp War Damage Taken 11277 | . 539 14 858 401 . 38 1092 642 96 647 . 294 646 . . . 274 2020 615 1340 1761 Core 1242 | . 91 14 70 80 . . 183 125 22 59 . 43 98 . . . . 311 . 57 89 Absorbed by Shields 9 | . . . . . . . . . . . . . . . . . . . . . 9 Reduced by Siege Mode 89 | . . . . . . . . . . . . . . . . . . 5 15 27 42 Core Remaining (%) 73 | 100 . 58 . . . 62 66 . . . . 64 . . . . 88 . . . . Volleys Fired 625 | . 72 6 79 21 . 5 97 29 10 13 . 13 37 9 2 1 9 115 29 54 24 Largest 3 | . 2 2 3 3 . 3 3 3 1 3 . 3 3 1 3 1 3 3 3 3 3 Hottest 234 | . 70 76 204 204 . 204 204 180 36 180 . 180 210 90 130 69 109 234 213 234 174 Shots Fired 1579 | . 143 12 237 53 . 15 287 87 10 27 . 23 105 9 4 1 27 305 53 115 66 Gun 718 | . 134 12 115 . . . . . . . . . 30 . 2 1 27 220 36 76 65 Cannon 810 | . 9 . 122 48 . 15 285 87 . 21 . 15 75 9 2 . . 84 8 29 1 Launcher 46 | . . . . 5 . . 2 . 10 6 . 6 . . . . . . 9 8 . Special 5 | . . . . . . . . . . . . 2 . . . . . 1 . 2 . Kinetic 132 | . 85 6 41 . . . . . . . . . . . . . . . . . . Thermal 1400 | . 58 6 196 48 . 15 285 87 . 21 . 17 105 9 4 1 27 304 44 107 66 Explosive 36 | . . . . 5 . . 2 . . 6 . 6 . . . . . . 9 8 . Electromagnetic 10 | . . . . . . . . . 10 . . . . . . . . . . . . Robot Hit Streak 27 | . 8 4 8 8 . 2 10 12 3 6 . 4 16 . 2 . 11 23 27 27 15 Robot Miss Streak 6 | . 6 5 4 2 . 2 4 5 1 4 . 1 2 . 1 . 3 4 1 3 3 Penetration Max . | . . . . . . . . . . . . . . . . . . . . . . Secondary Targets 10 | . . . 3 . . . . . . . . . . . . . 1 . . 2 4 Max Gunslinging Chain 1 | . . . 1 . . . . . . . . . . . . . 1 . . 1 1 Shots Hit Robots 985 | . 90 6 140 26 . 4 160 51 2 16 . 12 81 . 2 . 15 209 37 83 51 Core Hits 480 | . 37 4 59 15 . 9 62 24 4 33 . 18 31 . 1 . 9 70 29 53 22 Critical Kills 6 | . 1 . 1 . . . . . . 1 . . . . . . . 3 . . . Critical Parts Destroyed 1 | . 1 . . . . . . . . . . . . . . . . . . . . Critical Strikes 36 | . 2 . 4 . . . . . . 1 . . 2 . . . . 14 3 5 5 Burn 29 | . . . 3 . . . . . . . . . 2 . . . . 11 3 5 5 Meltdown 5 | . . . 1 . . . . . . 1 . . . . . . . 3 . . . Destroy 2 | . 2 . . . . . . . . . . . . . . . . . . . . Melee Attacks 4 | . . . . . . . . 4 . . . . . . . . . . . . . Impact . | . . . . . . . . . . . . . . . . . . . . . . Slashing 4 | . . . . . . . . 4 . . . . . . . . . . . . . Piercing . | . . . . . . . . . . . . . . . . . . . . . . Sneak Attacks . | . . . . . . . . . . . . . . . . . . . . . . Combat Hostiles . | . . . . . . . . . . . . . . . . . . . . . . Follow-up Attacks . | . . . . . . . . . . . . . . . . . . . . . . Damage Inflicted 27309 | . 1227 113 2478 825 . 275 4043 1312 295 1680 . 956 2061 . 59 . 398 5070 2116 3141 1260 Guns 9724 | . 1083 94 953 . . . . . . . . . 624 . 38 . 398 3567 592 1149 1226 Cannons 11021 | . 104 . 1507 532 . 101 3664 1268 . 273 . 200 1437 . . . . 1305 . 596 34 Explosions 6075 | . . . . 293 . 167 296 . 295 1407 . 730 . . . . . . 1524 1363 . Melee . | . . . . . . . . . . . . . . . . . . . . . . Ramming 442 | . 40 19 18 . . 7 83 44 . . . 12 . . 21 . . 198 . . . Kinetic 1025 | . 692 66 267 . . . . . . . . . . . . . . . . . . Thermal 19959 | . 495 28 2193 557 . 268 3664 1268 . 273 . 214 2061 . 38 . 398 4872 592 1778 1260 Explosive 5588 | . . . . 268 . . 296 . . 1407 . 730 . . . . . . 1524 1363 . Electromagnetic 295 | . . . . . . . . . 295 . . . . . . . . . . . . Impact . | . . . . . . . . . . . . . . . . . . . . . . Slashing . | . . . . . . . . . . . . . . . . . . . . . . Piercing . | . . . . . . . . . . . . . . . . . . . . . . Highest Corruption 9 | . . . . . . . . 1 1 1 1 1 . . . . . 9 9 . . Average Corruption 3 | . . . . . . . . 1 1 1 1 1 . . . . . 5 7 . . Corruption Purged 9 | . . . . . . . . . . . . . . . . . . . 9 . . Effects 115 | . . . . . . . . 1 5 6 . 5 . . . . . 86 12 . . Message Errors 34 | . . . . . . . . 1 3 5 . 2 . . . . . 20 3 . . Matter Fused 28 | . . . . . . . . . . . . . . . . . . 26 2 . . Heat Flow Errors 10 | . . . . . . . . . . . . . . . . . . 9 1 . . Energy Discharges 14 | . . . . . . . . . 1 1 . 2 . . . . . 9 1 . . Data Loss (minor) 16 | . . . . . . . . . 1 . . 1 . . . . . 11 3 . . Data Loss (major) 3 | . . . . . . . . . . . . . . . . . . 2 1 . . Misfires 8 | . . . . . . . . . . . . . . . . . . 7 1 . . Weapon Failures 2 | . . . . . . . . . . . . . . . . . . 2 . . . Overload Shots . | . . . . . . . . . . . . . . . . . . . . . . Overflow Damage 447 | . 4 . 22 43 . 13 119 10 . . . . 5 . 9 . . 135 61 26 . Projectiles 223 | . 4 . 22 . . . 119 2 . . . . 5 . . . . 58 . 13 . Explosions 198 | . . . . 43 . 13 . . . . . . . . . . . 68 61 13 . Melee 26 | . . . . . . . . 8 . . . . . . 9 . . 9 . . . Knockbacks 5 | . 2 . . . . . . 1 . . . . . . . . . 2 . . . Impact 3 | . . . . . . . . 1 . . . . . . . . . 2 . . . Kinetic 2 | . 2 . . . . . . . . . . . . . . . . . . . . Secondary . | . . . . . . . . . . . . . . . . . . . . . . Self-Inflicted Damage 539 | . . . . 49 . . . . . . . 39 . . . . . 425 26 . . Shots 7 | . . . . 1 . . . . . . . 1 . . . . . 4 1 . . Rammed 57 | . 11 4 8 . . 1 12 4 . . . 1 . . 1 . . 15 . . . Targets Rammed 63 | . 13 6 8 . . 1 13 5 . . . 1 . . 1 . . 15 . . . Kicked . | . . . . . . . . . . . . . . . . . . . . . . Crushed 6 | . 2 2 . . . . 1 1 . . . . . . . . . . . . . Highest Temperature 500 | . 8 . 284 352 . 152 238 20 . 20 . 3 285 . . . . 500 213 287 32 Average Temperature 79 | . 3 . 81 119 . 62 63 10 . 7 . 3 93 . . . . 89 95 100 14 Received Heat Transfer 2527 | . 216 9 348 72 . . 216 87 21 216 . 30 336 . . . 12 168 144 553 99 Effects 6 | . . . 1 . . . . . . . . . . . . . . 3 . 2 . Shutdowns 1 | . . . . . . . . . . . . . . . . . . 1 . . . Energy Bleed 1 | . . . . . . . . . . . . . . . . . . 1 . . . Interference 3 | . . . 1 . . . . . . . . . . . . . . . . 2 . Damage (minor) 1 | . . . . . . . . . . . . . . . . . . 1 . . . Siege Activations 10 | . . . . . . . . . . . . . . . . . . 1 2 5 2 Total Turns 141 | . . . . . . . . . . . . . . . . . . 14 38 80 9 Longest Duration 30 | . . . . . . . . . . . . . . . . . . 14 25 30 5 Robots Corrupted 1 | . . . . . . . . . 1 . . . . . . . . . . . . Combat Hostiles 1 | . . . . . . . . . 1 . . . . . . . . . . . . Parts Fried 2 | . . . . . . . . . 2 . . . . . . . . . . . . Impact Corruptions 5 | . . . . . . . 1 1 . . . . . . 1 . . 2 . . . Robots Melted 15 | . . . 2 . . . 1 . . 1 . . 2 . . . . 6 . 3 . Combat Hostiles 13 | . . . 1 . . . 1 . . 1 . . 2 . . . . 5 . 3 . Parts Melted 115 | . 7 . 13 1 . 1 10 7 . . . . 11 . . . 3 49 2 8 3 Heat Transferred 37785 | . 1444 74 4847 1012 . 385 6142 1998 . 444 . 407 3708 . 74 . 666 8954 1332 3607 2691 Parts Sabotaged . | . . . . . . . . . . . . . . . . . . . . . . Parts Stolen . | . . . . . . . . . . . . . . . . . . . . . . Parts Stripped . | . . . . . . . . . . . . . . . . . . . . . . Power Chain Reactions . | . . . . . . . . . . . . . . . . . . . . . . Missiles Intercepted . | . . . . . . . . . . . . . . . . . . . . . . Alert | -11 -10 -10 -9 -9 -9 -8 -8 -7 -7 -7 -7 -6 -6 -6 -6 -6 -5 -5 -5 -5 -5 ------- Run | Scr Mat Min Mat Min Exi Min Mat Fac Low Low Dat Pro Fac Low Low Zio Pro Fac Upp Upp War Peak Influence 622 | . 266 96 510 278 . 120 529 306 . . . . 227 . . . . 622 . . . Initial 240 | . . 76 . 153 . . 46 240 . . . . 58 . . . . 92 . . . Average 178 | . 90 23 325 176 . 98 199 178 . . . . 99 . . . . 211 . . . Maximum Alert Level 2 | . 1 . 2 1 . . 2 1 . . . . 1 . . . . 2 . . . Low Security (%) 66 | 100 95 100 21 57 . 100 68 57 . . . . 91 . . . . 59 . . . Level 1 20 | . 4 . 51 42 . . 6 42 . . . . 8 . . . . 22 . . . Level 2 12 | . . . 27 . . . 25 . . . . . . . . . . 18 . . . Level 3 . | . . . . . . . . . . . . . . . . . . . . . . Level 4 . | . . . . . . . . . . . . . . . . . . . . . . Level 5 . | . . . . . . . . . . . . . . . . . . . . . . High Security . | . . . . . . . . . . . . . . . . . . . . . . Max Security . | . . . . . . . . . . . . . . . . . . . . . . Squads Dispatched 40 | . 5 . 6 . . . 5 4 . 1 . . 5 . . . . 13 . 1 . Investigation 11 | . 3 . 2 . . . . 2 . . . . 1 . . . . 3 . . . Extermination 11 | . . . . . . . . 2 . . . . 1 . . . . 8 . . . Reinforcement 14 | . 2 . 4 . . . 4 . . . . . 2 . . . . 2 . . . Assault 3 | . . . . . . . . . . 1 . . 1 . . . . . . 1 . Garrison 1 | . . . . . . . 1 . . . . . . . . . . . . . . Intercept . | . . . . . . . . . . . . . . . . . . . . . . Construction Impeded 1 | . . . . . . . 1 . . . . . . . . . . . . . . Haulers Reinforced 3 | . . . . . . . . . . . . . 2 . . . . 1 . . . Active Scanning Responses . | . . . . . . . . . . . . . . . . . . . . . . Cargo Convoy Interrupts 1 | . . . . . . . . . . . . . 1 . . . . . . . . Stealth | -11 -10 -10 -9 -9 -9 -8 -8 -7 -7 -7 -7 -6 -6 -6 -6 -6 -5 -5 -5 -5 -5 --------- Run | Scr Mat Min Mat Min Exi Min Mat Fac Low Low Dat Pro Fac Low Low Zio Pro Fac Upp Upp War Distress Signals 13 | . 4 . 5 . . . 2 1 . . . . 1 . . . . . . . . Communications Jammed . | . . . . . . . . . . . . . . . . . . . . . . Distress Signals . | . . . . . . . . . . . . . . . . . . . . . . Times Spotted 352 | . 34 3 48 16 . 5 55 13 8 15 . 12 12 . 3 . 13 39 10 24 42 Peak Tracking Total 17 | . 5 2 5 4 . 4 5 5 4 7 . 5 3 . 3 . 5 3 5 9 17 Tactical Retreats 18 | . 2 . 2 4 . . 2 . 2 1 . . . . . . . 2 . 1 2 Traps | -11 -10 -10 -9 -9 -9 -8 -8 -7 -7 -7 -7 -6 -6 -6 -6 -6 -5 -5 -5 -5 -5 ------- Run | Scr Mat Min Mat Min Exi Min Mat Fac Low Low Dat Pro Fac Low Low Zio Pro Fac Upp Upp War Traps Triggered 11 | . 2 . 2 . . . 3 1 . . . . . . . . . 3 . . . Indirectly . | . . . . . . . . . . . . . . . . . . . . . . Trap Hack Attempts . | . . . . . . . . . . . . . . . . . . . . . . Triggered . | . . . . . . . . . . . . . . . . . . . . . . Disarmed . | . . . . . . . . . . . . . . . . . . . . . . Reprogrammed . | . . . . . . . . . . . . . . . . . . . . . . Reused . | . . . . . . . . . . . . . . . . . . . . . . Traps Extracted . | . . . . . . . . . . . . . . . . . . . . . . Installed . | . . . . . . . . . . . . . . . . . . . . . . Triggered 9 | . . . . . . . . . . . . . 1 . 3 . . . . . 5 Machines | -11 -10 -10 -9 -9 -9 -8 -8 -7 -7 -7 -7 -6 -6 -6 -6 -6 -5 -5 -5 -5 -5 ---------- Run | Scr Mat Min Mat Min Exi Min Mat Fac Low Low Dat Pro Fac Low Low Zio Pro Fac Upp Upp War Machines Disabled 13 | . . . 1 1 . 1 2 . . 1 . . . . . . . 5 1 . 1 Max in Single Turn 4 | . . . 1 1 . 1 1 . . 1 . . . . . . . 4 1 . . Garrison Access 3 | . . . . . . . 1 . . . . . 1 . . . . 1 . . . Machines Sabotaged . | . . . . . . . . . . . . . . . . . . . . . . Garrisons Compromised 1 | . . . . . . . . . . . . . 1 . . . . . . . . Overloaded Fab Kills . | . . . . . . . . . . . . . . . . . . . . . . Hacking | -11 -10 -10 -9 -9 -9 -8 -8 -7 -7 -7 -7 -6 -6 -6 -6 -6 -5 -5 -5 -5 -5 --------- Run | Scr Mat Min Mat Min Exi Min Mat Fac Low Low Dat Pro Fac Low Low Zio Pro Fac Upp Upp War Machines Accessed 62 | . 10 . 10 1 1 1 16 7 . . 4 . 1 . 1 . . 10 . . . Terminals 34 | . 8 . 7 . . 1 11 5 . . . . 1 . 1 . . . . . . Fabricators 5 | . . . . . . . . 2 . . . . . . . . . 3 . . . Repair Stations 7 | . 1 . 2 . . . 2 . . . . . . . . . . 2 . . . Recycling Units 2 | . 1 . 1 . . . . . . . . . . . . . . . . . . Scanalyzers 5 | . . . . . . . 2 . . . . . . . . . . 3 . . . Garrison Access 3 | . . . . . . . 1 . . . . . . . . . . 2 . . . Total Hacks 202 | . 29 . 30 1 4 2 49 21 . . 28 . 3 . 2 . . 33 . . . Successful 144 | . 13 . 19 1 4 2 39 12 . . 28 . 1 . 2 . . 23 . . . Failed 58 | . 16 . 11 . . . 10 9 . . . . 2 . . . . 10 . . . Catastrophic 8 | . 2 . . . . . 1 2 . . . . . . . . . 3 . . . Database Lockouts . | . . . . . . . . . . . . . . . . . . . . . . Manual 87 | . 21 . 20 . . 1 22 12 . . . . . . . . . 10 . . 1 Terminals 101 | . 26 . 22 . . 2 30 16 . . . . 3 . 2 . . . . . . Fabricators 14 | . . . . . . . . 5 . . . . . . . . . 9 . . . Repair Stations 27 | . 2 . 7 . . . 11 . . . . . . . . . . 7 . . . Recycling Units 2 | . 1 . 1 . . . . . . . . . . . . . . . . . . Scanalyzers 20 | . . . . . . . 5 . . . . . . . . . . 15 . . . Garrison Access 5 | . . . . . . . 3 . . . . . . . . . . 2 . . . Terminal Hacks 67 | . 5 . 6 1 4 1 14 5 . . 28 . 1 . 2 . . . . . . Record 17 | . . . . . 4 . . . . . 11 . . . 2 . . . . . . Part Schematic 13 | . . . . . . . 4 . . . 9 . . . . . . . . . . Robot Schematic 5 | . . . . . . . . . . . 5 . . . . . . . . . . Robot Analysis 1 | . 1 . . . . . . . . . . . . . . . . . . . . Prototype ID Bank 6 | . 1 . 1 . . . 1 . . . 3 . . . . . . . . . . Open Door 1 | . . . . 1 . . . . . . . . . . . . . . . . . Open DSF 1 | . . . . . . . . 1 . . . . . . . . . . . . . Branch Access Points 3 | . . . 1 . . . . 1 . . . . 1 . . . . . . . . Terminal Index 2 | . . . . . . . 1 1 . . . . . . . . . . . . . Fabricator Index 1 | . . . . . . . . 1 . . . . . . . . . . . . . Alert Level 2 | . . . 1 . . . 1 . . . . . . . . . . . . . . Unreport Threat 2 | . . . 1 . . . 1 . . . . . . . . . . . . . . Hauler Manifests 1 | . . . . . . . 1 . . . . . . . . . . . . . . Zone Layout 12 | . 3 . 2 . . 1 5 1 . . . . . . . . . . . . . Fabricator Hacks 10 | . . . . . . . . 3 . . . . . . . . . 7 . . . Load Schematic 6 | . . . . . . . . 2 . . . . . . . . . 4 . . . Build 4 | . . . . . . . . 1 . . . . . . . . . 3 . . . Repair Station Hacks 20 | . 2 . 6 . . . 10 . . . . . . . . . . 2 . . . Scan Component 11 | . 1 . 3 . . . 5 . . . . . . . . . . 2 . . . Repair 9 | . 1 . 3 . . . 5 . . . . . . . . . . . . . . Recycling Unit Hacks . | . . . . . . . . . . . . . . . . . . . . . . Scanalyzer 17 | . . . . . . . 5 . . . . . . . . . . 12 . . . Insert Component 9 | . . . . . . . 3 . . . . . . . . . . 6 . . . Analyze 8 | . . . . . . . 2 . . . . . . . . . . 6 . . . Garrison Access Hacks 2 | . . . . . . . 1 . . . . . . . . . . 1 . . . Seal Access 2 | . . . . . . . 1 . . . . . . . . . . 1 . . . Unauthorized Hacks 28 | . 6 . 7 . . 1 9 4 . . . . . . . . . 1 . . . Terminals 25 | . 5 . 6 . . 1 9 4 . . . . . . . . . . . . . Track 1 | . . . . . . 1 . . . . . . . . . . . . . . . Assimilate 1 | . 1 . . . . . . . . . . . . . . . . . . . . Botnet 22 | . 4 . 6 . . . 9 3 . . . . . . . . . . . . . Operators 1 | . . . . . . . . 1 . . . . . . . . . . . . . Fabricators 1 | . . . . . . . . . . . . . . . . . . 1 . . . Haulers 1 | . . . . . . . . . . . . . . . . . . 1 . . . Repair Stations . | . . . . . . . . . . . . . . . . . . . . . . Recycling Units 2 | . 1 . 1 . . . . . . . . . . . . . . . . . . Tunnel 2 | . 1 . 1 . . . . . . . . . . . . . . . . . . Scanalyzers . | . . . . . . . . . . . . . . . . . . . . . . Garrison Access . | . . . . . . . . . . . . . . . . . . . . . . Data Cores Recovered 1 | . . . 1 . . . . . . . . . . . . . . . . . . Used 1 | . . . 1 . . . . . . . . . . . . . . . . . . Hacking Detections 47 | . 8 . 9 . . . 14 6 . . . . 1 . . . . 9 . . . Full Trace Events 7 | . 1 . . . . . . 2 . . . . 1 . . . . 3 . . . Feedback Events 1 | . . . . . . . . 1 . . . . . . . . . . . . . Corruption 1 | . . . . . . . . 1 . . . . . . . . . . . . . Feedback Blocked . | . . . . . . . . . . . . . . . . . . . . . . Robot Schematics Acquired 7 | . . . . . . . . . . . 5 . . . . 2 . . . . . Robots Built . | . . . . . . . . . . . . . . . . . . . . . . Authchips . | . . . . . . . . . . . . . . . . . . . . . . Time . | . . . . . . . . . . . . . . . . . . . . . . Total Robot Build Rating . | . . . . . . . . . . . . . . . . . . . . . . Part Schematics Acquired 34 | . . . . . . . 6 . . . 9 . . . . 14 . 5 . . . Parts Built 5 | . . . . . . . . 1 . . . . . . . . . 4 . . . Authchips 2 | . . . . . . . . . . . . . . . . . . 2 . . . Time 428 | . . . . . . . . 36 . . . . . . . . . 392 . . . Total Part Build Rating 28 | . . . . . . . . 3 . . . . . . . . . 25 . . . Parts Repaired 9 | . 1 . 3 . . . 5 . . . . . . . . . . . . . . Time 313 | . 26 . 115 . . . 172 . . . . . . . . . . . . . . Parts Recycled . | . . . . . . . . . . . . . . . . . . . . . . Recycled Matter . | . . . . . . . . . . . . . . . . . . . . . . Retrieved Matter . | . . . . . . . . . . . . . . . . . . . . . . Retrieved Components . | . . . . . . . . . . . . . . . . . . . . . . Parts Scanalyzed 7 | . . . . . . . 2 . . . . . . . . . . 5 . . . Part Schematics Acquired 7 | . . . . . . . 2 . . . . . . . . . . 5 . . . Parts Damaged . | . . . . . . . . . . . . . . . . . . . . . . Bothacking | -11 -10 -10 -9 -9 -9 -8 -8 -7 -7 -7 -7 -6 -6 -6 -6 -6 -5 -5 -5 -5 -5 ------------ Run | Scr Mat Min Mat Min Exi Min Mat Fac Low Low Dat Pro Fac Low Low Zio Pro Fac Upp Upp War Used RIF Installer . | . . . . . . . . . . . . . . . . . . . . . . Robots Hacked 1 | . . . . . . . . . . . . . . . . . . 1 . . . Non-combat 1 | . . . . . . . . . . . . . . . . . . 1 . . . Combat . | . . . . . . . . . . . . . . . . . . . . . . Robot Hacks Applied 1 | . . . . . . . . . . . . . . . . . . 1 . . . find_chute 1 | . . . . . . . . . . . . . . . . . . 1 . . . Relay Couplers Released 4 | . . . . . . . 2 . . . . . 2 . . . . . . . . Machine Destruction 4 | . . . . . . . 2 . . . . . 2 . . . . . . . . Robots Rewired 6 | . . . . . . . . . . 1 . . . . . . . . 1 . 4 Allies Hacked 1 | . . . . . . . . . . . . . . . . . . 1 . . . Hacks Repelled . | . . . . . . . . . . . . . . . . . . . . . . Allies | -11 -10 -10 -9 -9 -9 -8 -8 -7 -7 -7 -7 -6 -6 -6 -6 -6 -5 -5 -5 -5 -5 -------- Run | Scr Mat Min Mat Min Exi Min Mat Fac Low Low Dat Pro Fac Low Low Zio Pro Fac Upp Upp War Total Allies 23 | . . 3 . . . . . . . 1 . 1 . . . 7 . 6 1 . 4 Largest Group 7 | . . 3 3 . . . . . . 1 . 1 1 . . 7 7 6 1 1 4 Highest-Rated Group 389 | . . 40 40 . . . . . . 16 . 95 95 . . 243 243 389 29 29 196 Highest-Rated Ally 95 | . . 16 16 . . . . . . 16 . 95 95 . . 40 40 70 29 29 65 Zionite Dispatches 2 | . . . . . . . . . . . . . . . . . . 2 . . . Light 2 | . . . . . . . . . . . . . . . . . . 2 . . . Total Orders . | . . . . . . . . . . . . . . . . . . . . . . Ally Attacks 191 | . . 13 28 . . . . . . 6 . 11 8 . . . 42 40 . 16 27 Total Damage 4769 | . . 171 356 . . . . . . 78 . 419 302 . . . 868 824 . 271 1480 Kills 38 | . . 2 6 . . . . . . 1 . 3 2 . . . 10 5 . . 9 Allies Corrupted . | . . . . . . . . . . . . . . . . . . . . . . Allies Melted . | . . . . . . . . . . . . . . . . . . . . . . Intel | -11 -10 -10 -9 -9 -9 -8 -8 -7 -7 -7 -7 -6 -6 -6 -6 -6 -5 -5 -5 -5 -5 ------- Run | Scr Mat Min Mat Min Exi Min Mat Fac Low Low Dat Pro Fac Low Low Zio Pro Fac Upp Upp War Robot Analysis Total 1 | . 1 . . . . . . . . . . . . . . . . . . . . Derelict Logs Recovered 14 | . . 2 . 1 . . . . 1 1 . . . 2 2 1 1 . 2 1 . Drone Launches . | . . . . . . . . . . . . . . . . . . . . . . Drone Recoveries . | . . . . . . . . . . . . . . . . . . . . . . Zionite Intel Received 1 | . . . . . . . . . . . . . . . . . . 1 . . . Emergency Access 1 | . . . . . . . . . . . . . . . . . . 1 . . . Exploration | -11 -10 -10 -9 -9 -9 -8 -8 -7 -7 -7 -7 -6 -6 -6 -6 -6 -5 -5 -5 -5 -5 ------------- Run | Scr Mat Min Mat Min Exi Min Mat Fac Low Low Dat Pro Fac Low Low Zio Pro Fac Upp Upp War Turns Passed 33578 | 78 1797 1885 2306 1450 763 593 3954 1708 1063 920 184 712 813 1427 972 2915 1053 4889 1344 1193 1559 Spaces Moved 12164 | 49 727 749 734 570 318 240 1359 592 373 354 77 262 255 594 408 1228 422 1584 408 321 540 Core 12 | 12 . . . . . . . . . . . . . . . . . . . . . Treads 12152 | 37 727 749 734 570 318 240 1359 592 373 354 77 262 255 594 408 1228 422 1584 408 321 540 Legs . | . . . . . . . . . . . . . . . . . . . . . . Wheels . | . . . . . . . . . . . . . . . . . . . . . . Hover . | . . . . . . . . . . . . . . . . . . . . . . Flight . | . . . . . . . . . . . . . . . . . . . . . . Fastest Speed 50 | 50 160 240 240 240 240 240 155 241 241 241 241 241 235 235 235 235 232 232 240 240 160 Average Speed 233 | 139 168 240 240 240 240 240 236 241 241 241 241 241 236 235 235 235 234 234 240 240 239 Slowest Speed 410 | 160 240 240 240 240 240 240 410 241 241 241 241 241 237 235 235 235 235 240 240 240 320 Overloaded Moves . | . . . . . . . . . . . . . . . . . . . . . . Propulsion Burnouts . | . . . . . . . . . . . . . . . . . . . . . . Robots Hopped . | . . . . . . . . . . . . . . . . . . . . . . Cave-ins Triggered . | . . . . . . . . . . . . . . . . . . . . . . Exploration Rate (%) 60 | 5 95 99 69 95 74 46 98 16 57 56 68 54 8 83 62 89 59 37 59 52 57 Regions Visited 21 Branch Regions 15 Pre-discovered Areas 7 | . 1 1 1 1 1 . . . . . 1 . . . . 1 . . . . . Known Exits Taken 15 | . . . 1 . . 1 . 1 1 1 1 1 1 1 1 1 1 1 1 1 . Unknown Exits Taken 6 | 1 1 1 . 1 1 . 1 . . . . . . . . . . . . . . Scrap Searched 19 | . . 1 . 2 . 1 . . 1 2 . 2 . 1 1 5 2 . 1 . . Spaces Dug 111 | . . . . . . . 5 4 . . . 23 2 5 . . . 20 44 8 . Terrain Destroyed 488 | . . . . 43 . 14 31 4 . 71 . 59 3 9 1 . . 66 107 78 2 Melee 4 | . . . . . . . . 4 . . . . . . . . . . . . . Projectile 95 | . . . . . . 2 20 . . 1 . . 3 9 1 . . 38 8 11 2 AOE 389 | . . . . 43 . 12 11 . . 70 . 59 . . . . . 28 99 67 . Terrain Rammed . | . . . . . . . . . . . . . . . . . . . . . . Walls Destroyed . | . . . . . . . . . . . . . . . . . . . . . . Machines Disabled . | . . . . . . . . . . . . . . . . . . . . . . Actions | -11 -10 -10 -9 -9 -9 -8 -8 -7 -7 -7 -7 -6 -6 -6 -6 -6 -5 -5 -5 -5 -5 --------- Run | Scr Mat Min Mat Min Exi Min Mat Fac Low Low Dat Pro Fac Low Low Zio Pro Fac Upp Upp War Total 16112 | 56 1146 821 1108 609 319 245 1888 792 528 395 76 317 381 616 417 1258 470 2525 731 659 755 Wait 2540 | . 300 41 200 7 . . 289 127 139 2 . 30 39 4 1 8 15 688 267 269 114 Move 12143 | 48 726 748 733 569 317 239 1358 591 372 353 76 261 254 593 407 1227 421 1583 407 320 540 Hop . | . . . . . . . . . . . . . . . . . . . . . . Pick Up 174 | 2 17 9 25 2 . . 41 11 2 1 . 2 15 2 1 7 6 20 3 2 6 Fast Attach 59 | 6 3 . 4 3 . . 17 1 . . . . 4 2 . . 1 13 2 . 3 Attach 51 | . 1 . 2 1 . . 6 2 1 1 . 2 7 . 1 1 . 12 3 5 6 Detach 3 | . . . . . . . 2 . . . . . . . . . . 1 . . . Swap 198 | . 7 3 21 4 1 . 19 16 2 8 . 7 13 2 3 7 7 51 9 8 10 Drop 182 | . 7 8 36 2 1 . 46 6 2 . . 1 12 3 1 7 11 27 5 . 7 Fire 625 | . 72 6 79 21 . 5 97 29 10 13 . 13 37 9 2 1 9 115 29 54 24 Melee 4 | . . . . . . . . 4 . . . . . . . . . . . . . Ram . | . . . . . . . . . . . . . . . . . . . . . . Kick . | . . . . . . . . . . . . . . . . . . . . . . Crush 63 | . 13 6 8 . . 1 13 5 . . . 1 . . 1 . . 15 . . . Escape Stasis . | . . . . . . . . . . . . . . . . . . . . . . Rewire 70 | . . . . . . . . . . 17 . . . 1 . . . . 6 1 45 Trap . | . . . . . . . . . . . . . . . . . . . . . . Miscellaneous . | . . . . . . . . . . . . . . . . . . . . . . Route ------- -11/Scrapyard -10/Materials (discovered 3 exits: *Mat x2 / [*Min]) -10/Mines (discovered 2 exits: *Mat x2) -9/Materials (discovered 6 exits: *Mat x3 / *Min / *Sto x2) -9/Mines (discovered 3 exits: *Mat x2 / *Exi) -9/Exiles -8/Mines -8/Materials (discovered 3 exits: *Fac x3) -7/Factory (discovered 2 exits: *Low x2) -7/Lower Caves -7/Lower Caves -7/Data Miner -6/Proximity Caves -6/Factory (discovered 2 exits: *Low x2) -6/Lower Caves -6/Lower Caves -6/Zion -5/Proximity Caves -5/Factory (discovered 5 exits: *Fac x4 / *Upp) -5/Upper Caves (discovered 2 exits: *Upp / *War) -5/Upper Caves (discovered 2 exits: Fac / *War) -5/Warlord History --------- Turn | Location | Event 4 | -11/Scrapyard | Discovered new exit (range 16) 79 | -11/Scrapyard | Entered Materials 301 | -10/Materials | Build established: Mutant 352 | -10/Materials | Discovered new exit (range 16) 570 | -10/Materials | Discovered new exit (range 13) 1519 | -10/Materials | Repaired Lgt. Treads 1663 | -10/Materials | Discovered new exit (range 14) 1876 | -10/Materials | Entered Mines 1886 | -10/Mines | Received a Rocket Launcher from a helpful Derelict 1951 | -10/Mines | Assembled infested the area 1956 | -10/Mines | Assisted by a Guerilla fighting off Assembled 2394 | -10/Mines | Learned location of Zion (-6) 2452 | -10/Mines | Learned Materials interactive machine intel 2478 | -10/Mines | Assisted by bots powering up and referring to "LRC-V3" 2859 | -10/Mines | Build established: Scavenger-Mutant 2994 | -10/Mines | Discovered new exit (range 13) 3251 | -10/Mines | Discovered new exit (range 16) 3761 | -10/Mines | Entered Materials 3761 | -9/Materials | Accompanied by 3 allies 3761 | -9/Materials | Evolved 2 slots: Utility x1, Weapon x1 3762 | -9/Materials | Loaded intel: 18 interactive machine locations 4243 | -9/Materials | Discovered new exit (range 17) 4551 | -9/Materials | Discovered new exit (range 15) 4621 | -9/Materials | Repaired Imp. Heat Sink 4921 | -9/Materials | Build established: Scavenger-Gunner 5182 | -9/Materials | Discovered new exit (range 8) 5252 | -9/Materials | Repaired Lgt. Armor Plating 5304 | -9/Materials | Repaired Adv. Beam Cannon 5536 | -9/Materials | Discovered new exit (range 9) 5670 | -9/Materials | Identified exit to Mines 5670 | -9/Materials | Identified exit to Storage 5859 | -9/Materials | Build established: Gunner 6067 | -9/Materials | Entered Mines 6170 | -9/Mines | Learned location of Storage (-9) 6632 | -9/Mines | Discovered new exit (range 11) 6659 | -9/Mines | Met a Derelict who couldn't figure out how to use a Trap Extractor 6855 | -9/Mines | Identified exit to Materials 7505 | -9/Mines | Deemed a non-threat by the Exiles lab entrance 7507 | -9/Mines | Discovered new exit (range 5) 7517 | -9/Mines | Entered Exiles 7575 | -9/Exiles | Met 8R-AWN 7616 | -9/Exiles | Met EX-HEX 7729 | -9/Exiles | Met EX-DEC 7778 | -9/Exiles | Visited The Gauntlet 8256 | -9/Exiles | Discovered new exit (range 12) 8280 | -9/Exiles | Entered Mines 8624 | -8/Mines | Discovered exit to Materials (range 7) 8873 | -8/Mines | Entered Materials 8873 | -8/Materials | Evolved 2 slots: Propulsion x1, Utility x1 9178 | -8/Materials | Build established: Tank 9524 | -8/Materials | Discovered new exit (range 4) 9553 | -8/Materials | Build established: Scavenger-Tank 9980 | -8/Materials | Garrison activated, responded to threat 10181 | -8/Materials | Build established: Tank 10381 | -8/Materials | Discovered new exit (range 16) 10511 | -8/Materials | Repaired Rocket Launcher 10538 | -8/Materials | Repaired Hcp. Storage Unit? 11288 | -8/Materials | Discovered new exit (range 15) 11705 | -8/Materials | Destroyed 7 combat bots 12330 | -8/Materials | Repaired Imp. Cooling System 12369 | -8/Materials | Repaired Arm. Treads 12403 | -8/Materials | Repaired Hrd. Light Armor Plating 12827 | -8/Materials | Entered Factory 12827 | -7/Factory | Evolved 2 slots: Utility x2 12862 | -7/Factory | Identified exit to Lower Caves 13687 | -7/Factory | Build established: Scavenger-Skirmisher 14391 | -7/Factory | Fabricated Adv. Targeting Computer (x1) 14535 | -7/Factory | Entered Lower Caves 14553 | -7/Lower Caves | Learned 4 Factory zone layouts 15006 | -7/Lower Caves | Spotted B-75 Beast 15209 | -7/Lower Caves | Encountered a Warlord checkpoint 15310 | -7/Lower Caves | Discovered new exit (range 15) 15596 | -7/Lower Caves | Identified exit to Lower Caves 15598 | -7/Lower Caves | Entered another Lower Caves area 15600 | -7/Lower Caves | Attracted the attention of an 0b10 outpost 15655 | -7/Lower Caves | Destroyed 12 combat bots 16427 | -7/Lower Caves | Discovered new exit (range 10) 16443 | -7/Lower Caves | Identified exit to Data Miner 16518 | -7/Lower Caves | Entered Data Miner 16518 | -7/Data Miner | Discovered new exit (range 6) 16564 | -7/Data Miner | Met Data Miner 16610 | -7/Data Miner | Learned location of Section 7 (-3) 16610 | -7/Data Miner | Acquired the access code to Warlord's prototype stash 16644 | -7/Data Miner | Received God Mode back door access code from Data Miner 16699 | -7/Data Miner | Identified exit to Proximity Caves 16702 | -7/Data Miner | Entered Proximity Caves 16769 | -6/Proximity Caves | Escorted by Enhanced Grunt 17185 | -6/Proximity Caves | Attracted the attention of an 0b10 checkpoint 17250 | -6/Proximity Caves | Discovered new exit (range 13) 17313 | -6/Proximity Caves | Identified exit to Factory 17414 | -6/Proximity Caves | Entered Factory 17414 | -6/Factory | Accompanied by 1 ally 17414 | -6/Factory | Evolved 2 slots: Power x1, Propulsion x1 17415 | -6/Factory | Identified exit to Lower Caves 17474 | -6/Factory | Build established: Scavenger-Tank 17867 | -6/Factory | Build established: Scavenger-Skirmisher 18088 | -6/Factory | Found Prototype Device 18089 | -6/Factory | Identified Exp. Thermal Shield 18113 | -6/Factory | Cargo convoy interrupted 18139 | -6/Factory | Incoming assault squad redirected 18227 | -6/Factory | Entered Lower Caves 18275 | -6/Lower Caves | Learned 4 Factory zone layouts 18527 | -6/Lower Caves | Learned Factory stockpile data 18682 | -6/Lower Caves | Build established: Scavenger-Mutant 19247 | -6/Lower Caves | Discovered new exit (range 13) 19273 | -6/Lower Caves | Identified exit to Lower Caves 19485 | -6/Lower Caves | Found Alien Artifact 19485 | -6/Lower Caves | Identified Core Expander 19485 | -6/Lower Caves | Installed Core Expander, added new Power slot 19654 | -6/Lower Caves | Entered another Lower Caves area 19833 | -6/Lower Caves | Encountered a Warlord checkpoint 19900 | -6/Lower Caves | Learned location of 1 exit from Factory 20009 | -6/Lower Caves | Build established: Scavenger-Skirmisher 20088 | -6/Lower Caves | Learned location of 1 exit from Factory 20530 | -6/Lower Caves | Discovered new exit (range 11) 20548 | -6/Lower Caves | Identified exit to Zion 20626 | -6/Lower Caves | Entered Zion 20813 | -6/Zion | Found CR-A16's Pointy Stick 20936 | -6/Zion | Discovered new exit (range 12) 21178 | -6/Zion | Learned Factory emergency access door positions 21333 | -6/Zion | Acquired unknown access codes intercepted by a Zionite 21915 | -6/Zion | Identified exit to Proximity Caves 22530 | -6/Zion | Learned location of 1 exit from Factory 22834 | -6/Zion | Visited the Megawrench Repair Shop 22834 | -6/Zion | Megawrench repaired 15 parts 23028 | -6/Zion | Imprinted 23030 | -6/Zion | Declared Zion's savior 23270 | -6/Zion | Gained Derelict followers 23541 | -6/Zion | Entered Proximity Caves 23541 | -5/Proximity Caves | Accompanied by 7 allies 24051 | -5/Proximity Caves | Spotted B-75 Beast 24065 | -5/Proximity Caves | Allies destroyed B-75 Beast 24554 | -5/Proximity Caves | Discovered new exit (range 8) 24582 | -5/Proximity Caves | Identified exit to Factory 24594 | -5/Proximity Caves | Entered Factory 24594 | -5/Factory | Evolved 2 slots: Utility x2 24595 | -5/Factory | Identified exit to Upper Caves 24595 | -5/Factory | Identified exit to Factory 24695 | -5/Factory | Zion Light squad teleported in 24775 | -5/Factory | Fabricated Mak. Sensor Array (x1) 25178 | -5/Factory | Retrieved Zion intel report: Emergency Access 25179 | -5/Factory | Zion Light squad teleported in 25241 | -5/Factory | Found Prototype Protection 25241 | -5/Factory | Identified Zio. Weapon Casing 25841 | -5/Factory | Discovered exit to Factory (range 9) 26059 | -5/Factory | Discovered exit to Factory (range 7) 26085 | -5/Factory | Terminal network hard line cut 27560 | -5/Factory | Fabricated Cld. Plasma Rifle? 27770 | -5/Factory | Build established: Generator-Skirmisher 27889 | -5/Factory | Fabricated Hvy. Treads? 28633 | -5/Factory | Lost 3 parts (2p1w) 29483 | -5/Factory | Entered Upper Caves 29544 | -5/Upper Caves | Attracted the attention of an 0b10 outpost 29790 | -5/Upper Caves | Build established: Scavenger-Skirmisher 29972 | -5/Upper Caves | Found Imp. Powered Armor 30276 | -5/Upper Caves | Build established: Generator-Skirmisher 30374 | -5/Upper Caves | Learned Factory emergency access door positions 30398 | -5/Upper Caves | A Derelict revealed a hidden shortcut to "reach the base" 30405 | -5/Upper Caves | Identified exit to Warlord 30429 | -5/Upper Caves | Learned Factory terminal intel 30680 | -5/Upper Caves | Encountered a Warlord checkpoint 30775 | -5/Upper Caves | Discovered new exit (range 16) 30809 | -5/Upper Caves | Identified exit to Upper Caves 30827 | -5/Upper Caves | Entered another Upper Caves area 30827 | -5/Upper Caves | Accompanied by 1 ally 30880 | -5/Upper Caves | Attracted the attention of an 0b10 checkpoint 31026 | -5/Upper Caves | Attracted the attention of an 0b10 outpost 31073 | -5/Upper Caves | Lost 3 parts (1u2w) 31122 | -5/Upper Caves | Destroyed 13 combat bots 31443 | -5/Upper Caves | Build established: Generator-Mutant 31993 | -5/Upper Caves | Discovered exit to Warlord (range 13) 32020 | -5/Upper Caves | Entered Warlord 32174 | -5/Warlord | Build established: Generator-Skirmisher 32606 | -5/Warlord | Received a Watcher feed algorithm from an ecstatic Tinkerer 32959 | -5/Warlord | Rebuked by Warlord 32981 | -5/Warlord | Opened Warlord's prototype stash 32984 | -5/Warlord | Warlord's base attacked by MAIN.C 32988 | -5/Warlord | Found Prototype Reactor 32996 | -5/Warlord | Found Prototype Processor 33019 | -5/Warlord | Found Prototype Processor 33237 | -5/Warlord | Spotted B-75 Beast 33334 | -5/Warlord | Warlord forces counterattacked 33365 | -5/Warlord | Spotted Striker 33418 | -5/Warlord | Spotted B-86 Titan 33419 | -5/Warlord | Spotted Executioner 33427 | -5/Warlord | Spotted Striker 33431 | -5/Warlord | Spotted Striker 33438 | -5/Warlord | Spotted Executioner 33445 | -5/Warlord | Spotted B-75 Beast 33478 | -5/Warlord | Lost 3 parts (1p1u1w) 33564 | -5/Warlord | Spotted Executioner 33579 | -5/Warlord | Self-destructed Last Messages --------------- 33521_ Acquired 10 matter. 33522_ Dynamic Insulation System fries itself beyond repair. 33522_ Com. Battery fries itself beyond repair. 33524_ Com. Wheel fries itself beyond repair. 33525_ Coolant Injector fries itself beyond repair. 33529_ Energy Well fries itself beyond repair. 33532_ Acquired Lyr. Medium Armor Plating. 33551_ The unstable cave ceiling collapses. 33556_ Neutrino Core crushed. 33567_ Penetrated by Slug. 33567_ Slug penetrates Wall. 33573_ Plasma Rifle destroyed. 33573_ Penetrated by Slug. 33573_ Slug penetrates Wall. 33573_ Mak. Sensor Array destroyed. 33574_ ANNOUNCEMENT: MAIN.C reinforcements approaching through caves, arriving soon. 33576_ Slug penetrates Wall. 33578_ Hvy. Treads destroyed. 33578_ Imp. Medium Armor Plating destroyed. Map ----- +----------------------------------------------------+ | | | | | | | ?????????????????????????####????????????????????? | | ???????????????????? ????????????????????? | | ???????????????????? #???????????????????? | | ???????????????#???? #???????????????????? | | ??????????????? ???? ###########?????????? | | ??????????????# #??? """ """ # #?????????? | | ?????########## #??# """ """ # #?????????? | | ?????# # #??# """ """ # ########?????????? | | ?????# """ # #??# # #????????????????? | | ?????# """ # ###;;######+## #????????????????? | | ?????# """ + #????????????????? | | ?????# # d #######??????????? | | #+#??# """ ######; ###### ## #??????????? | | # #### """ #???##; #????# ## #??????????? | | / """ #???? ; ###### ## #??????????? | | ###### #????#;^ ^^ # ## ????????????? | | ?????##########?????; ^ # ##+#?????????????? | | ?##############?????# ^ # #?????????????? | | ?#""""""""""""#???### ^ ######?????????????? | | ?#" #???# # ##?????????????????? | | ##" !###### #?????????????????? | | ##" !+ % ####???????????????? | | ##"" !!+% =%% @ ## #???????????????? | | ##" ! +% !% %% ] # #???????????????? | | ##" %#####; ###???????????????? | | ##" #???# ; [= #???????????????? | | ##"""""""" #???### %=% % #???????????????? | | ########## #????## % % =%%[! ###??""#????????? | | ##=!! ! # #????" %=!%[%]= #?#""#????????? | | ##= #?####+##; *%/!%! % ###""#????????? | | ?#= #?# # ##%%!=!*## # ""#####????? | | ?#= #?# ? # " !*%%%%!%[ [""%* "###### | | ?#== ! #X #?# ? ## "% [[=%d%!%!=*"" %%" """" | | ?##############?# #;#" =[%=bE#[% ""%%% """% | | ????????????????# " [!!!d[%=%%%%%%%!%%% %% | | ?????????######?# " # %*%%%!=%%!%%%%%%%% | | ?????????# #?# # %%!=%%%*!%%%%%!%%%% | | ?????????# #?# %%* %=%%%%%%!%[ | | ?????????# #?# # # # !%""%%%%%%% | | ???????###### ######## % ""%%%["""""" | | ???????# + # [ # "" ="###### | | ???????# #######+## # #######""#####????? | | ???????# #?# # # #?????#""#????????? | | ???????# #?# # # #?????#""#????????? | | ???????# #?# #### #??????""#????????? | | ???????######?# #??# #??????"??????????? | | ??????????????###########?? ?????????????????? | +----------------------------------------------------+ Best States ------------- Heat Dissipation 102 Energy Generation 57 Energy Capacity 670 Matter Stores 300 Matter Capacity 300 Sight Range 16 Robot Scan Range 19 Terrain Scan Density 10 Armor Coverage 1200 Resistance: TH 30 Weapon Cycling 15 Evasion (%) 50 Targeting Accuracy 8 Recoil Reduction 4 Offensive Hacking 14 Authchip Count 2 Item Schematics ----------------- Huge Storage Unit | -8/Materials | Hacked Hacking Suite | -8/Materials | Scanalyzed Adv. Treads | -8/Materials | Scanalyzed Adv. Targeting Computer | -8/Materials | Hacked Imp. Signal Interpreter | -8/Materials | Hacked Cooling System | -8/Materials | Hacked Lgt. Regenerative Plating | -7/Data Miner | Free Combat Drone Bay | -7/Data Miner | Free Cld. Aerolev Unit | -7/Data Miner | Free Gravity Neutralizing Apparatus | -7/Data Miner | Free Cld. Plasma Cannon | -7/Data Miner | Free Gyrokinetic Inverter | -7/Data Miner | Free Imp. Recalibrator | -7/Data Miner | Free Lrn. Proton Cannon | -7/Data Miner | Free Imp. Plasma Cutter | -7/Data Miner | Free Mni. Drone Bay | -6/Zion | Archive Fission Core | -6/Zion | Archive Hardcell Cannon | -6/Zion | Archive Imp. Transmission Jammer | -6/Zion | Archive Variable Charge Gun | -6/Zion | Archive Arc Thrower | -6/Zion | Archive Arm. Medium Treads | -6/Zion | Archive Imp. Hardlight Generator | -6/Zion | Archive Imp. Remote Datajack | -6/Zion | Archive Mak. Cloaking Device | -6/Zion | Archive Mak. Sensor Array | -6/Zion | Archive Imp. Shock Absorption System | -6/Zion | Archive Spk. Medium Treads | -6/Zion | Archive Beamcaster | -6/Zion | Archive Hvy. Treads | -5/Factory | Scanalyzed Cld. Plasma Rifle | -5/Factory | Scanalyzed Weapon Cycler | -5/Factory | Scanalyzed Plasma Rifle | -5/Factory | Scanalyzed Hvy. Plasma Cannon | -5/Factory | Scanalyzed Robot Schematics ------------------ G-50 Soldier | -7/Data Miner | Free L-41 Fighter | -7/Data Miner | Free G-47 Trooper | -7/Data Miner | Free S-27 Virus | -7/Data Miner | Free H-66 Slayer | -7/Data Miner | Free R-06 Scavenger | -6/Zion | Archive C-57 Dissector | -6/Zion | Archive Fabricated ------------ Adv. Targeting Computer | x1 | -7/Factory Mak. Sensor Array | x1 | -5/Factory | Authchip Cld. Plasma Rifle | x1 | -5/Factory | Authchip Hvy. Treads | x2 | -5/Factory Alien Tech Used ----------------- Core Expander Achievements -------------- None Challenges ------------ None Game ------ Seed RiotBlastKatana Manual? 0 Play Time 02:46:52 Cumulative 1357.3 hours Start 2021.10.27 @ 13:07:23 End 2021.10.27 @ 20:42:09 Sessions 1 Manual Loads 0 Difficulty Rogue Special Mode None Game No. 468 Rogue 468 Adventurer 0 Explorer 0 Win Type - Total 95 Types 21/12/37/5/1/2/15/1/1 Lore% 95 Gallery% 95 Achievement% 86 Wizard Run 0 Options --------- ASCII 0 Keyboard 0 Movement Numpad Keybinds 0 Fullscreen 1 Font 18/SmallcapsGlow Map View 76x50 Tactical HUD 1 Map Filters NONE Filters NONE Steam 1 RUN: 1e450952-3787-4383-9ffd-4345d6b7c9e8